Workbook

Sheet Start
B1: OM DEN HÄR MALLEN
B2: Använd den här arbetsboken för en evenemangsbudget för att spåra utgifter och intäkter från ett evenemang.
B3: Fyll i evenemangets namn och ange information i tabeller i kalkylbladet Utgifter och kalkylbladet Intäkter.
B4: Summa utgifter och summa intäkter beräknas automatiskt.
B5: Sammanfattning av vinst och förlust och diagrammet uppdateras automatiskt i kalkylbladet Sammanfattning.
B6: Obs!
B7: Ytterligare anvisningar finns i kolumn A i varje kalkylblad. Den här texten har avsiktligt dolts. Om du vill ta bort texten markerar du kolumn A och väljer sedan TA BORT. Om du vill att texten ska visas markerar du kolumn A och ändrar sedan teckenfärg.
B8: Om du vill läsa mer om tabeller trycker du på SKIFT och sedan på F10 i en tabell. Välj alternativet TABELL och sedan ALTERNATIV TEXT.

Sheet Utgifter
A1: Ange beräknad och faktisk utgifter för varje kategori i respektive tabell i det här kalkylbladet. Summa utgifter beräknas automatiskt. Anvisningar för hur du använder det här kalkylbladet finns i cellerna i den här kolumnen. Använd nedåtpil för att komma igång.
A2: Ange evenemangets namn i cellen till höger för att anpassa rubriken för det här och de andra kalkylbladen. | B2: Evenemangsbudget för Evenemangets namn
A3: Etiketten Utgifter finns i cell G3. | G3: Utgifter
A4: Etiketten Beräknad finns i cell G4 och etiketten Faktisk i cell H4. | G4: Beräknad | H4: Faktisk
A5: Etiketten Summa utgifter finns i cellen till höger. Beräknad summa utgifter beräknas automatiskt i cell G5. Faktisk summa utgifter och datastapeln som visar faktisk summa utgifter uppdateras automatiskt i cell H5. Fler anvisningar finns i cell A7. | B5: Summa utgifter | G5: =SUM(C12,C20,C26,C33,G12,G20,G25) -> 1,145.00 kr | H5: =SUM(D12,D20,D26,D33,H12,H20,H25) -> 395.00 kr
A7: Ange utgifter för lokal i tabellen som börjar i cellen till höger och utgifter för förfriskningar i tabellen som börjar i cell F7. Fler anvisningar finns i cell A14. | B7: Lokal | C7: Beräknad | D7: Faktisk | F7: Förfriskningar | G7: Beräknad | H7: Faktisk
B8: Avgifter för rum och sal | C8: 500.00 kr | D8: 250.00 kr | F8: Mat
B9: Personal på plats | C9: 400.00 kr | D9: 50.00 kr | F9: Dryck
B10: Utrustning | F10: Linne
B11: Bord och stolar | F11: Personal och serviceavgifter
B12: Summa | C12: =SUBTOTAL(109,UtgifterFörLokal[Beräknad]) -> 900.00 kr | D12: =SUBTOTAL(109,UtgifterFörLokal[Faktisk]) -> 300.00 kr | F12: Summa | G12: =SUBTOTAL(109,UtgifterFörFörfriskningar[Beräknad]) -> 0.00 kr | H12: =SUBTOTAL(109,UtgifterFörFörfriskningar[Faktisk]) -> 0.00 kr
A14: Ange utgifter för dekorationer i tabellen som börjar i cellen till höger och utgifter för program i tabellen som börjar i cell F14. Fler anvisningar finns i cell A22. | B14: Dekorationer | C14: Beräknad | D14: Faktisk | F14: Program | G14: Beräknad | H14: Faktisk
B15: Blommor | C15: 200.00 kr | D15: 50.00 kr | F15: Artister
B16: Ljus | F16: Talare
B17: Belysning | F17: Resor
B18: Ballonger | F18: Hotell
B19: Pappersmaterial | F19: Övrigt
B20: Summa | C20: =SUBTOTAL(109,UtgifterFörDekorationer[Beräknad]) -> 200.00 kr | D20: =SUBTOTAL(109,UtgifterFörDekorationer[Faktisk]) -> 50.00 kr | F20: Summa | G20: =SUBTOTAL(109,UtgifterFörProgram[Beräknad]) -> 0.00 kr | H20: =SUBTOTAL(109,UtgifterFörProgram[Faktisk]) -> 0.00 kr
A22: Ange utgifter för reklam i tabellen som börjar i cellen till höger och utgifter för priser i tabellen som börjar i cell F22. Fler anvisningar finns i cell A28. | B22: Reklam | C22: Beräknad | D22: Faktisk | F22: Priser | G22: Beräknad | H22: Faktisk
B23: Grafik | C23: 45.00 kr | D23: 45.00 kr | F23: Band/plaketter/troféer
B24: Fotokopiering/utskrifter | F24: Gåvor
B25: Porto | F25: Summa | G25: =SUBTOTAL(109,UtgifterFörPriser[Beräknad]) -> 0.00 kr | H25: =SUBTOTAL(109,UtgifterFörPriser[Faktisk]) -> 0.00 kr
B26: Summa | C26: =SUBTOTAL(109,UtgifterFörReklam[Beräknad]) -> 45.00 kr | D26: =SUBTOTAL(109,UtgifterFörReklam[Faktisk]) -> 45.00 kr
A28: Ange övriga utgifter i tabellen som börjar i cellen till höger. | B28: Övrigt | C28: Beräknad | D28: Faktisk
B29: Telefon
B30: Transport
B31: Kontorsmaterial
B32: Faxtjänster
B33: Summa | C33: =SUBTOTAL(109,ÖvrigaUtgifter[Beräknad]) -> 0.00 kr | D33: =SUBTOTAL(109,ÖvrigaUtgifter[Faktisk]) -> 0.00 kr

Sheet Intäkter
A1: Ange beräknad och faktisk intäkter för varje kategori i respektive tabell i det här kalkylbladet. Summa intäkter beräknas automatiskt. Anvisningar för hur du använder det här kalkylbladet finns i cellerna i den här kolumnen. Använd nedåtpil för att komma igång.
A2: Evenemangets namn uppdateras automatiskt i cellen till höger. | B2: =Utgifter!B2 -> Evenemangsbudget för Evenemangets namn
A3: Etiketten Intäkter finns i cell F3. | F3: Intäkter
A4: Etiketten Beräknad finns i cell F4 och etiketten Faktisk i cell G4. | F4: Beräknad | G4: Faktisk
A5: Etiketten Summa intäkter finns i cellen till höger. Beräknad summa intäkter beräknas automatiskt i cell F5. Faktisk summa intäkter och datastapeln som visar faktisk summa intäkter uppdateras automatiskt i cell G5. | B5: Summa intäkter | F5: =SUM(Inträde[[#Totals],[Beräknad summa]],ReklamIProgrammet[[#Totals],[Beräknad summa]],UtställareOchFörsäljare[[#Totals],[Beräknad summa]],SåldaProdukter[[#Totals],[Beräknad summa]]) -> 1,936.00 kr | G5: =SUM(Inträde[[#Totals],[Faktisk summa]],ReklamIProgrammet[[#Totals],[Faktisk summa]],UtställareOchFörsäljare[[#Totals],[Faktisk summa]],SåldaProdukter[[#Totals],[Faktisk summa]]) -> 1,831.00 kr
A6: Etiketten Inträde finns i cellen till höger. | B6: Inträde
A7: Ange beräknad och faktisk inträdesantal med biljettpriser i tabellen som börjar i cellen till höger. Beräknad och faktisk intäkter från inträde beräknas automatiskt. Fler anvisningar finns i cell A12. | B7: Beräknad | C7: Faktisk | D7: Typ | E7: Pris | F7: Beräknad summa | G7: Faktisk summa
B8: 300 | C8: 278 | D8: Vuxna à | E8: 5.00 kr | F8: =B8*E8 -> 1,500.00 kr | G8: =C8*E8 -> 1,390.00 kr
B9: 197 | C9: 195 | D9: Barn à | E9: 2.00 kr | F9: =B9*E9 -> 394.00 kr | G9: =C9*E9 -> 390.00 kr
B10: 42 | C10: 51 | D10: Övriga à | E10: 1.00 kr | F10: 42.00 kr | G10: 51.00 kr
F11: =SUBTOTAL(109,Inträde[Beräknad summa]) -> 1,936.00 kr | G11: =SUBTOTAL(109,Inträde[Faktisk summa]) -> 1,831.00 kr
A12: Etiketten Reklam i programmet finns i cellen till höger. | B12: Reklam i programmet
A13: Ange beräknad och faktisk reklam i programmet och reklampris i tabellen som börjar i cellen till höger. Beräknad och faktisk intäkter från reklam beräknas automatiskt. Fler anvisningar finns i cell A18. | B13: Beräknad | C13: Faktisk | D13: Typ | E13: Pris | F13: Beräknad summa | G13: Faktisk summa
D14: Omslag à | F14: =B14*E14 -> 0.00 kr | G14: =C14*E14 -> 0.00 kr
D15: A5 à | F15: =B15*E15 -> 0.00 kr | G15: =C15*E15 -> 0.00 kr
D16: A6 à | F16: 0.00 kr | G16: 0.00 kr
F17: =SUBTOTAL(109,ReklamIProgrammet[Beräknad summa]) -> 0.00 kr | G17: =SUBTOTAL(109,ReklamIProgrammet[Faktisk summa]) -> 0.00 kr
A18: Etiketten Utställare eller försäljare finns i cellen till höger. | B18: Utställare/försäljare
A19: Ange beräknad och faktisk antal utställare och försäljare samt monterpris i tabellen som börjar i cellen till höger. Beräknad och faktisk intäkter beräknas automatiskt. Fler anvisningar finns i cell A24. | B19: Beräknad | C19: Faktisk | D19: Typ | E19: Pris | F19: Beräknad summa | G19: Faktisk summa
D20: Stora montrar à | F20: =B20*E20 -> 0.00 kr | G20: =C20*E20 -> 0.00 kr
D21: Mellanstora montrar à | F21: =B21*E21 -> 0.00 kr | G21: =C21*E21 -> 0.00 kr
D22: Små montrar à | F22: 0.00 kr | G22: 0.00 kr
F23: =SUBTOTAL(109,UtställareOchFörsäljare[Beräknad summa]) -> 0.00 kr | G23: =SUBTOTAL(109,UtställareOchFörsäljare[Faktisk summa]) -> 0.00 kr
A24: Etiketten Sålda produkter finns i cellen till höger. | B24: Sålda produkter
A25: Ange beräknad och faktisk antal sålda produkter och produktpris i tabellen som börjar i cellen till höger. Beräknad och faktisk intäkter beräknas automatiskt. | B25: Beräknad | C25: Faktisk | D25: Typ | E25: Pris | F25: Beräknad summa | G25: Faktisk summa
D26: Produkter à | F26: =B26*E26 -> 0.00 kr | G26: =C26*E26 -> 0.00 kr
D27: Produkter à | F27: =B27*E27 -> 0.00 kr | G27: =C27*E27 -> 0.00 kr
D28: Produkter à | F28: 0.00 kr | G28: 0.00 kr
D29: Produkter à | F29: 0.00 kr | G29: 0.00 kr
F30: =SUBTOTAL(109,SåldaProdukter[Beräknad summa]) -> 0.00 kr | G30: =SUBTOTAL(109,SåldaProdukter[Faktisk summa]) -> 0.00 kr

Sheet Sammanfattning
A1: Sammanfattning av vinst och förlust och diagrammet som visar summa intäkter och utgifter uppdateras automatiskt i det här kalkylbladet. Anvisningar för hur du använder det här kalkylbladet finns i cellerna i den här kolumnen. Använd nedåtpil för att komma igång.
A2: Evenemangets namn uppdateras automatiskt i cellen till höger. | B2: =Utgifter!B2 -> Evenemangsbudget för Evenemangets namn
A3: Etiketten Sammanfattning av vinst – förlust finns i cell C3. Fler anvisningar finns i cell A5. | C3: Sammanfattning av vinst – förlust
A5: Tabellen Summa som börjar i cellen till höger uppdateras automatiskt. Fler anvisningar finns i cell A9. | B5: Summa | C5: Beräknad | D5: Faktisk
B6: Summa intäkter | C6: =Intäkter!F5 -> 1,936.00 kr | D6: =Intäkter!G5 -> 1,831.00 kr
B7: Summa utgifter | C7: =Utgifter!G5 -> 1,145.00 kr | D7: =Utgifter!H5 -> 395.00 kr
B8: Summa vinst (eller förlust) | C8: =C6-C7 -> 791.00 kr | D8: =D6-D7 -> 1,436.00 kr
A9: Grupperat stående stapeldiagram som visar en jämförelse mellan beräknad och faktisk summa intäkter och summa utgifter finns i cellen till höger. | B9: Grupperat stående stapeldiagram som visar en jämförelse mellan beräknad och faktisk summa intäkter och summa utgifter finns i den här cellen.
